[Event "Fall GM-A Norm Invitational 2022"]
[Site "Charlotte"]
[Date "2022.11.18"]
[Round "2"]
[White "Preotu, Razvan"]
[Black "Cordova, Emilio"]
[Result "1-0"]
[ECO "B30"]
[WhiteElo "2493"]
[BlackElo "2561"]
[Annotator "TA"]
[PlyCount "83"]
[EventDate "2022.11.18"]
[EventType "tourn"]
[EventCountry "USA"]
[SourceTitle "playchess.com"]
[Source "ChessBase"]
[SourceQuality "1"]
[TimeControl "5400+30"]

{[%evp 9,83,16,50,3,4,6,15,0,0,0,47,45,84,79,73,57,56,35,46,54,45,38,31,33,43,51,53,66,50,39,50,39,152,159,210,215,212,160,152,156,151,139,154,154,188,189,258,156,140,151,537,537,537,537,523,523,523,504,517,500,5093,1657,29958,29960,29961,29961,29962,29963,29963,29964,29968,29969,29969,29970,29967,5546]} 1. e4 {[%emt 0:00:14]} c5 2. Nf3 {[%emt 0:00:15]} Nc6 {[%emt 0:01:26]} 3. Bb5 {[%emt 0:00:16]} e6 {[%emt 0:00:19]} 4. O-O {[%emt 0:00:12]} Nge7 {[%emt 0:00:13]} 5. Re1 {[%emt 0:00:19]} b6 {[%emt 0:00:15]} 6. b3 {[%emt 0:05:56] B30: Sicilian: 2...Nc6 3 Bb5, lines without ...g6.} (6. c3 $14) 6... Bb7 {[%emt 0:00:47]} 7. Bb2 {[%emt 0:00:18]} a6 {[%emt 0:00:49]} 8. Bf1 {[%emt 0:00:30] The position is equal.} d5 {[%emt 0:01:08]} 9. exd5 {[%emt 0:00:41]} Qxd5 {[%emt 0:01:23] [#]} (9... Nxd5 $11 10. g3 (10. Nc3 Nf6 $11) 10... Nf6) 10. Na3 $146 {[%emt 0:04:00]} ({Predecessor:} 10. Nc3 Qd7 11. Na4 Qc7 12. Ng5 Qf4 13. Qh5 g6 14. Qf3 Qxf3 15. Nxf3 Rg8 16. Nxb6 Rd8 17. Ng5 Bg7 18. Bxg7 Rxg7 19. Ne4 Nc8 20. Nc4 {1-0 (20) Henao,R (2410)-Disconzi da Silva,R (2290) Guarapuava 1992}) 10... Qh5 {[%emt 0:18:12]} 11. Nc4 {[%emt 0:03:56]} Nd5 {[%emt 0:01:50]} 12. d4 {[%emt 0:02:09]} Rd8 {[%emt 0:01:43]} 13. Nce5 {[%emt 0:00:53]} ({Reject} 13. dxc5 $6 Bxc5 14. Nfe5 (14. Bxg7 $2 Rg8 $19) 14... Qf5 $11) (13. Nfe5 {is interesting.} Qxd1 14. Raxd1 Nxe5 15. dxe5 Rd7 16. Rd2) 13... Nxe5 {[%emt 0:22:10]} 14. Nxe5 {[%emt 0:00:26]} Qxd1 {[%emt 0:00:17]} 15. Raxd1 {[%emt 0:14:11] Threatens to win with dxc5.} cxd4 {[%emt 0:16:14]} 16. Rxd4 {[%emt 0:04:43]} Be7 {[%emt 0:14:40]} 17. c4 {[%emt 0:01:40]} Nf6 {[%emt 0:00:20]} 18. Rxd8+ {[%emt 0:02:43]} Bxd8 {[%emt 0:00:05]} 19. Nd3 {[%emt 0:31:35]} h5 {[%emt 0:05:54]} 20. c5 {[%emt 0:01:36]} a5 {[%emt 0:00:54]} (20... O-O $14) 21. Rc1 $1 $36 {[%emt 0:01:21][%mdl 2048] White is really pushing.} bxc5 {[%emt 0:01:37]} (21... Bd5 $16 {was worth a try.} 22. Ne5 bxc5) 22. Nxc5 $18 {[%emt 0:00:19]} Bd5 {[%emt 0:00:05]} 23. Bb5+ {[%emt 0:00:37]} Kf8 {[%emt 0:00:06]} 24. Nd3 {[%emt 0:02:54] Rc8 is the strong threat.} Bb7 {[%emt 0:01:49] Inhibits Rc8.} 25. Ne5 {[%emt 0:03:52]} h4 {[%emt 0:03:42]} 26. Bc6 {[%emt 0:01:16] White is more active.} Ba6 {[%emt 0:01:08] [#]} 27. Rd1 $1 {[%emt 0:03:07] Prevents Nd5.} Be7 {[%emt 0:06:05]} (27... Bc7 {keeps fighting.} 28. Nd7+ Kg8 29. Nxf6+ gxf6) 28. Nd7+ {[%emt 0:02:42]} Kg8 {[%emt 0:00:44]} 29. Nxf6+ {[%emt 0:00:26]} Bxf6 $2 {[%emt 0:00:04] A mistake that costs the game.} (29... gxf6 $16 {is a better chance.} 30. Rd7 Kf8) 30. Bxf6 {[%emt 0:00:14]} gxf6 $16 {[%emt 0:00:03][%mdl 4096] Endgame [#] KRB-KRB} 31. Rd8+ $1 {[%emt 0:00:37]} Kg7 {[%emt 0:00:04]} 32. Rxh8 {[%emt 0:00:06]} Kxh8 $18 {[%emt 0:00:03] KB-KB} 33. a3 {[%emt 0:00:07][%cal Ba2a3,Ba3b4,Bb4b5][%mdl 32]} f5 {[%emt 0:02:19]} 34. b4 {[%emt 0:00:17]} axb4 {[%emt 0:00:04]} (34... Bc8 $142 35. b5 Kg8) 35. axb4 {[%emt 0:00:05]} f4 {[%emt 0:00:15]} 36. b5 {[%emt 0:00:15] White mates.} Bc8 {[%emt 0:00:04]} 37. b6 {[%emt 0:01:11]} Kg7 {[%emt 0:00:04]} 38. b7 {[%emt 0:00:28]} Bxb7 {[%emt 0:00:04]} 39. Bxb7 {[%emt 0:00:05]} f5 {[%emt 0:00:11]} 40. h3 {[%emt 0:02:09]} Kf6 {[%emt 0:00:31]} 41. Kf1 {[%emt 0:00:10]} e5 {[%emt 0:00:46]} 42. f3 {[%emt 0:01:03] Weighted Error Value: White=0.08 (flawless) /Black=0.50} 1-0

[Event "Fall GM-A Norm Invitational 2022"]
[Site "Charlotte"]
[Date "2022.11.18"]
[Round "2"]
[White "Tiglon, Bryce"]
[Black "Mardov, Dimitar"]
[Result "0-1"]
[ECO "C60"]
[WhiteElo "2475"]
[BlackElo "2432"]
[Annotator "TA"]
[PlyCount "106"]
[EventDate "2022.11.18"]
[EventType "tourn"]
[EventCountry "USA"]
[SourceTitle "playchess.com"]
[Source "ChessBase"]
[SourceQuality "1"]
[TimeControl "5400+30"]

{[%evp 9,106,45,49,43,27,24,46,22,14,-23,-26,-27,-20,-23,-11,-48,-47,-44,-46,-54,-43,-43,-46,-74,-56,-82,-89,-104,-99,-90,-87,-87,-94,-100,-83,-96,-76,-98,-93,-98,-97,-116,-101,-106,-60,-72,-50,-120,-118,-118,-126,-120,-121,-125,-131,-108,-120,-154,-126,-123,-111,-175,-138,-209,-196,-198,-231,-253,-220,-213,-190,-187,-181,-164,0,-183,-179,-193,-186,-333,-333,-323,-318,-416,-409,-585,-622,-730,-672,-823,-800,-825,-789,-766,-762,-1077,-1107,-942,-895]} 1. e4 {[%emt 0:00:02]} e5 {[%emt 0:00:05]} 2. Nf3 {[%emt 0:00:06]} Nc6 {[%emt 0:00:04]} 3. Bb5 {[%emt 0:00:33]} g6 {[%emt 0:00:19]} 4. c3 {[%emt 0:00:35][%cal Bc2c3,Bc3d4][%mdl 32]} Bg7 {[%emt 0:00:49]} 5. d4 {[%emt 0:01:38]} exd4 {[%emt 0:00:49]} 6. cxd4 {[%emt 0:01:50] C60: Ruy Lopez: Unusual Black 3rd moves and 3...g6.} a6 {[%emt 0:00:15]} 7. Bxc6 {[%emt 0:02:48]} dxc6 {[%emt 0:00:26][%cal Bd7c6,Bc6c5,Bc5d4][%mdl 32]} 8. O-O {[%emt 0:01:00] White is slightly better.} Bg4 {[%emt 0:08:48]} 9. Be3 {[%emt 0:04:52]} c5 {[%emt 0:04:08]} 10. Nbd2 {[%emt 0:09:40]} cxd4 {[%emt 0:02:50] [#]} 11. Bf4 $146 {[%emt 0:02:09]} ({Predecessor:} 11. Bxd4 Qxd4 12. Qc2 Qd7 {0-1 (12) Hemanth,R (2032)-Raahul,V (2381) Bhopal 2018}) 11... Ne7 {[%emt 0:06:37]} 12. h3 {[%emt 0:01:33]} Bxf3 {[%emt 0:04:00]} 13. Nxf3 {[%emt 0:00:39]} O-O {[%emt 0:03:28]} 14. Rc1 {[%emt 0:03:23]} Nc6 {[%emt 0:05:34]} 15. Qb3 {[%emt 0:02:57]} Rb8 {[%emt 0:01:23]} 16. Rfd1 {[%emt 0:06:15]} Re8 {[%emt 0:04:53]} 17. Qd3 {[%emt 0:29:26]} Qe7 {[%emt 0:02:18]} 18. e5 {[%emt 0:03:54]} Nxe5 {[%emt 0:06:43]} (18... h6 {feels hotter.} 19. Qb3 Nxe5 20. Nxd4 c5) 19. Nxe5 {[%emt 0:01:18]} Bxe5 {[%emt 0:00:25]} 20. Bxe5 {[%emt 0:00:25][%mdl 64] [#] Remove Defender} Qxe5 {[%emt 0:00:06]} 21. Qxd4 {[%emt 0:02:17]} Qxd4 {[%emt 0:03:04]} (21... Qe7 {is more complex.} 22. Qc3 c6 23. Re1 Qd6) 22. Rxd4 $17 {[%emt 0:00:02][%mdl 4096] Endgame KRR-KRR} Re7 {[%emt 0:01:14]} 23. Rb4 {[%emt 0:00:51]} Kf8 {[%emt 0:02:39]} 24. Rc6 {[%emt 0:03:20]} a5 {[%emt 0:03:18]} 25. Rb3 {[%emt 0:01:07]} b6 {[%emt 0:02:54]} ({And not} 25... bxc6 26. Rxb8+ Re8 27. Rxe8+ Kxe8 28. Kf1 $15) 26. Rbc3 {[%emt 0:01:31]} Rb7 {[%emt 0:01:19]} (26... Rd8 $17 {...Rd1+ is the strong threat.} 27. Rc2 (27. Rxc7 Rxc7 28. Rxc7 Rd2 $17) 27... Ke8) 27. Kf1 $15 {[%emt 0:06:39]} Ke8 {[%emt 0:01:17]} 28. R6c4 {[%emt 0:00:58]} (28. Re3 $15) 28... c5 $17 {[%emt 0:01:38]} 29. a3 {[%emt 0:04:32]} Rbd7 {[%emt 0:00:55][%cal Rd7d1]} 30. g4 {[%emt 0:04:40]} Rd1+ {[%emt 0:04:42]} 31. Kg2 {[%emt 0:00:01]} Rb1 {[%emt 0:00:53] Black is more active.} 32. Rb3 {[%emt 0:00:57]} Re6 {[%emt 0:00:38]} 33. Rc2 {[%emt 0:00:02]} Kd7 {[%emt 0:01:42]} 34. Rd2+ {[%emt 0:01:40]} Kc6 {[%emt 0:01:07]} 35. Rbd3 {[%emt 0:00:20]} (35. Rf3 $17) 35... Rbe1 $19 {[%emt 0:09:39]} 36. Kf3 {[%emt 0:00:50] Prevents R1e2.} (36. Rf3 $17) 36... Rg1 {[%emt 0:04:43]} 37. Kf4 {[%emt 0:02:34]} h6 {[%emt 0:04:39]} 38. h4 {[%emt 0:00:01]} Rge1 {[%emt 0:02:29]} 39. Kf3 {[%emt 0:00:33]} Rf6+ {[%emt 0:01:52]} 40. Kg2 {[%emt 0:00:01]} Re4 {[%emt 0:01:21]} 41. Kg3 {[%emt 0:00:11]} Re1 {[%emt 0:01:02]} 42. Kg2 $1 {[%emt 0:00:16]} Ree6 {[%emt 0:00:15]} 43. Rd7 {[%emt 0:01:12]} Re4 {[%emt 0:00:51]} 44. Kg3 {[%emt 0:00:30] [#]} (44. f3 {was the only chance.} Re3 45. Rd8) 44... h5 $1 {[%emt 0:00:45]} 45. gxh5 {[%emt 0:02:02]} gxh5 {[%emt 0:00:06]} 46. Kh3 {[%emt 0:00:41]} Ref4 {[%emt 0:00:57]} 47. Rd8 {[%emt 0:00:38]} (47. R7d3 {was called for.} Rxf2 48. Kg3) 47... Rxf2 {[%emt 0:00:21][%cal Rf6f3] Black is clearly winning.} 48. R2d3 {[%emt 0:00:28]} Rxb2 {[%emt 0:01:10] Hoping for ...a4.} 49. a4 {[%emt 0:00:25]} Rb4 {[%emt 0:00:49]} 50. Rc8+ {[%emt 0:00:35]} Kb7 {[%emt 0:00:04]} 51. Rh8 {[%emt 0:00:16]} Rf5 {[%emt 0:00:57]} 52. Rdd8 {[%emt 0:00:32]} Rxa4 {[%emt 0:00:13]} 53. Rb8+ {[%emt 0:00:09]} Ka6 {[%emt 0:00:10] Weighted Error Value: White=0.32/Black=0.10 (very precise)} 0-1

[Event "Fall GM-A Norm Invitational 2022"]
[Site "Charlotte"]
[Date "2022.11.18"]
[Round "2"]
[White "Siddharth, Jagadeesh"]
[Black "Stremavicius, Titas"]
[Result "1/2-1/2"]
[ECO "D35"]
[WhiteElo "2407"]
[BlackElo "2527"]
[Annotator "TA"]
[PlyCount "30"]
[EventDate "2022.11.18"]
[EventType "tourn"]
[EventCountry "USA"]
[SourceTitle "playchess.com"]
[Source "ChessBase"]
[SourceQuality "1"]
[TimeControl "5400+30"]

{[%evp 15,21,13,16,12,12,9,12,18]} 1. d4 {[%emt 0:02:30]} d5 {[%emt 0:00:37]} 2. c4 {[%emt 0:00:43]} e6 {[%emt 0:00:04]} 3. Nc3 {[%emt 0:00:08]} Nf6 {[%emt 0:00:06]} 4. cxd5 {[%emt 0:00:11]} exd5 {[%emt 0:00:04]} 5. Bg5 {[%emt 0:00:12][%cal Bc1g5,Bg5h4,Bh4g3][%mdl 32]} Be7 {[%emt 0:00:42]} 6. e3 {[%emt 0:00:07]} h6 {[%emt 0:00:56]} 7. Bh4 {[%emt 0:00:13]} O-O {[%emt 0:00:20]} 8. Bd3 {[%emt 0:00:32]} Re8 {[%emt 0:00:43] The position is equal.} 9. h3 {[%emt 0:00:46] D35: Queen's Gambit Declined: Exchange Variation.} c6 {[%emt 0:07:05]} 10. Bg3 {[%emt 0:00:27]} Bd6 {[%emt 0:02:14]} 11. Nge2 {[%emt 0:00:22] [#] Not much happened in this game.  Weighted Error Value: White=0.01 (flawless) /Black=0.01 (flawless)} {Predecessor:} Qe7 $146 12. O-O Nbd7 13. a3 Bxg3 14. Nxg3 Nb6 15. Re1 Be6 {0-1 (15) Zordick,M (2314)-Braziulis,V (2354) ICCF email 2018} 1/2-1/2

[Event "Fall GM-A Norm Invitational 2022"]
[Site "Charlotte"]
[Date "2022.11.18"]
[Round "2"]
[White "Mulyar, Michael"]
[Black "Kaliksteyn, Alexander"]
[Result "1/2-1/2"]
[ECO "D45"]
[WhiteElo "2355"]
[BlackElo "2389"]
[Annotator "TA"]
[PlyCount "38"]
[EventDate "2022.11.18"]
[EventType "tourn"]
[EventCountry "USA"]
[SourceTitle "playchess.com"]
[Source "ChessBase"]
[SourceQuality "1"]
[TimeControl "5400+30"]

{[%evp 17,18,1,7]} 1. d4 {[%emt 0:00:01]} d5 {[%emt 0:00:05]} 2. c4 {[%emt 0:00:03]} e6 {[%emt 0:00:06]} 3. Nc3 {[%emt 0:00:04]} c6 {[%emt 0:00:04]} 4. e3 {[%emt 0:00:03]} Nf6 {[%emt 0:00:06]} 5. Nf3 {[%emt 0:00:04]} Nbd7 {[%emt 0:00:05]} 6. Qc2 {[%emt 0:00:04]} Bd6 {[%emt 0:00:06]} 7. Bd3 {[%emt 0:00:02]} O-O {[%emt 0:00:07]} 8. O-O {[%emt 0:00:04]} dxc4 {[%emt 0:00:04]} 9. Bxc4 {[%emt 0:00:03]} b5 {[#]} {Predecessor:} 10. Bd3 $146 {D46: Semi-Slav: 5 e3 Nbd7 6 Bd3, Black avoids the Meran.} Bb7 11. a3 a5 12. e4 e5 13. dxe5 Nxe5 14. Nxe5 Bxe5 15. h3 Ba6 16. Be3 b4 17. Bxa6 bxc3 18. Bc4 cxb2 19. Rad1 Qe7 {½-½ (41) Duda,J (2750)-Firouzja,A (2793) Madrid 2022} 1/2-1/2

[Event "Fall GM-A Norm Invitational 2022"]
[Site "Charlotte"]
[Date "2022.11.19"]
[Round "3"]
[White "Cordova, Emilio"]
[Black "Siddharth, Jagadeesh"]
[Result "1/2-1/2"]
[ECO "A45"]
[WhiteElo "2561"]
[BlackElo "2407"]
[Annotator "TA"]
[PlyCount "75"]
[EventDate "2022.11.18"]
[EventType "tourn"]
[EventCountry "USA"]
[SourceTitle "playchess.com"]
[Source "ChessBase"]
[SourceQuality "1"]
[TimeControl "5400+30"]

{[%evp 9,75,37,34,3,9,-15,-11,-20,-16,-28,-27,-36,-27,-55,-41,-37,-79,-46,-40,-40,-42,-42,-42,-42,-42,-43,-39,-114,-70,-68,-70,-66,-74,-78,-70,-64,-70,-98,-91,-86,-56,-83,-82,-87,-87,-102,-106,-112,-69,-69,-69,-69,-69,-69,-69,-69,-69,-69,-69,-69,-69,-70,-69,-69,-33,-33,-33,-33]} 1. d4 {[%emt 0:00:42]} Nf6 {[%emt 0:00:50]} 2. Bg5 {[%emt 0:00:25]} Ne4 {[%emt 0:00:39]} 3. Bf4 {[%emt 0:00:54]} d5 {[%emt 0:00:11]} 4. e3 {[%emt 0:00:17]} Bf5 {[%emt 0:00:08]} 5. f3 {[%emt 0:01:38]} Nd6 {[%emt 0:00:07]} 6. Nd2 {[%emt 0:03:01] A45: Trompowsky Attack.} Nc6 {[%emt 0:00:06]} 7. c4 {[%emt 0:00:07]} Nxc4 {[%emt 0:00:28]} 8. Nxc4 {[%emt 0:00:32] The position is equal.} dxc4 {[%emt 0:00:10]} 9. Bxc4 {[%emt 0:00:10]} e5 $1 {[%emt 0:00:04]} 10. dxe5 {[%emt 0:00:08] [#]} Bb4+ $146 {[%emt 0:00:07]} ({Predecessor:} 10... Qh4+ 11. Kf1 g5 12. Qb3 gxf4 13. Qxb7 fxe3 14. Qxc6+ Bd7 15. g3 Bxc6 16. gxh4 Rd8 17. Re1 Bb4 18. Rc1 Rd2 {0-1 (18) Abegg,B (2358)-Schneider,H (2249) SUI email 2006}) 11. Kf2 {[%emt 0:00:26]} Qe7 {[%emt 0:00:25][%mdl 1024] ...g5 is the strong threat. Black has compensation.} 12. Ne2 {[%emt 0:05:27]} Rd8 {[%emt 0:06:45]} 13. Qa4 {[%emt 0:00:13]} O-O {[%emt 0:07:56] Threatens to win with ...g5.} 14. Rad1 {[%emt 0:16:59]} g5 {[%emt 0:18:40]} 15. Bg3 {[%emt 0:00:10]} Bc5 $1 {[%emt 0:00:09][%cal Oc5e3] [#] And now ...Bxe3+! would win.} 16. Qb3 {[%emt 0:05:58]} Nxe5 {[%emt 0:10:05]} 17. Nd4 {[%emt 0:01:43]} Bg6 {[%emt 0:02:27] aiming for ...Rfe8.} 18. Rhe1 {[%emt 0:10:47]} (18. h4 $15) 18... Nxc4 {[%emt 0:03:31]} (18... Bb4 {looks sharper.} 19. Rf1 Nxc4 20. Qxc4 Rfe8) 19. Qxc4 {[%emt 0:00:06]} Bb4 {[%emt 0:00:11] A strong pair of Bishops.} 20. Qxc7 {[%emt 0:01:16]} Bxe1+ {[%emt 0:00:23]} 21. Rxe1 {[%emt 0:00:05]} Qxc7 {[%emt 0:04:44]} 22. Bxc7 {[%emt 0:00:11]} Rd5 {[%emt 0:00:06]} 23. g4 {[%emt 0:02:31]} Rc8 {[%emt 0:01:28]} 24. Bg3 {[%emt 0:00:08]} Rdc5 {[%emt 0:01:21]} 25. Re2 {[%emt 0:06:53]} Rc1 {[%emt 0:00:53]} 26. Be5 {[%emt 0:03:45]} Rd1 {[%emt 0:01:19]} 27. Bf6 {[%emt 0:09:19]} Bd3 {[%emt 0:11:17] Prevents e4.} 28. Re1 {[%emt 0:00:05]} Rxe1 {[%emt 0:00:16]} ({Weaker is} 28... Rd2+ 29. Kg3) 29. Kxe1 $17 {[%emt 0:00:15][%mdl 4096] Endgame KRB-KBN. Black is slightly better.} h6 {[%emt 0:00:23]} 30. h4 {[%emt 0:10:03]} gxh4 {[%emt 0:02:22]} 31. Bxh4 {[%emt 0:00:05]} Rc1+ {[%emt 0:00:49]} 32. Kd2 {[%emt 0:00:05]} Rh1 {[%emt 0:00:06]} 33. Bg3 {[%emt 0:01:18]} Bc4 {[%emt 0:00:29]} 34. a3 {[%emt 0:00:48]} Be6 {[%emt 0:00:48]} 35. e4 {[%emt 0:04:08]} Kg7 {[%emt 0:01:11]} 36. Be5+ {[%emt 0:03:19]} Kg6 {[%emt 0:00:34]} 37. Ne2 {[%emt 0:00:04]} Bb3 {[%emt 0:09:05]} 38. Ke3 {[%emt 0:00:58] Weighted Error Value: White=0.09 (flawless) /Black=0.06 (flawless)} 1/2-1/2

[Event "Fall GM-A Norm Invitational 2022"]
[Site "Charlotte"]
[Date "2022.11.19"]
[Round "3"]
[White "Mardov, Dimitar"]
[Black "Preotu, Razvan"]
[Result "*"]
[ECO "C11"]
[WhiteElo "2432"]
[BlackElo "2493"]
[Annotator "TA"]
[PlyCount "42"]
[EventDate "2022.11.18"]
[EventType "tourn"]
[EventCountry "USA"]
[SourceTitle "playchess.com"]
[Source "ChessBase"]
[SourceQuality "1"]
[TimeControl "5400+30"]

{[%evp 20,42,3,0,0,0,0,16,16,26,31,19,35,31,24,26,31,29,22,28,28,24,54,0,0]} 1. e4 {[%emt 0:00:03]} e6 {[%emt 0:00:18]} 2. d4 {[%emt 0:00:14]} d5 {[%emt 0:00:11]} 3. Nc3 {[%emt 0:00:06]} Nf6 {[%emt 0:00:16]} 4. e5 {[%emt 0:00:09]} Nfd7 {[%emt 0:00:09]} 5. f4 {[%emt 0:00:05]} c5 {[%emt 0:00:12]} 6. Nf3 {[%emt 0:00:04]} Nc6 {[%emt 0:00:13]} 7. Be3 {[%emt 0:00:05]} cxd4 {[%emt 0:01:04]} 8. Nxd4 {[%emt 0:00:06]} Qb6 {[%emt 0:00:13]} 9. Qd2 {[%emt 0:01:57]} Qxb2 {[%emt 0:00:17]} 10. Rb1 {[%emt 0:00:17][%cal Ba1b1,Bb1b3,Bb3b7][%mdl 32]} Qa3 {[%emt 0:00:10]} 11. Bb5 $1 {[%emt 0:00:09]} Nxd4 {[%emt 0:00:13] C11: French: Classical System: 4 e5 and 4 Bg5 dxe4.} 12. Bxd4 {[%emt 0:00:08][%cal Of4f5] With the idea f5!} ({But not} 12. Qxd4 a6 13. Bxd7+ Bxd7 14. Rxb7 Rc8 $17) 12... a6 {[%emt 0:00:06]} (12... Bb4 {looks sharper.} 13. O-O a6 14. Rb3 Qa5) 13. Bxd7+ {[%emt 0:00:05]} Bxd7 {[%emt 0:00:05]} 14. Rb3 {[%emt 0:00:22]} Qe7 {[%emt 0:00:23]} 15. Rxb7 {[%emt 0:00:08]} Qh4+ {[%emt 0:01:32] is recently more successful than 15...Rc8.} 16. Qf2 {[%emt 0:14:17]} Qxf2+ {[%emt 0:00:38]} 17. Kxf2 {[%emt 0:01:01]} Be7 {[%emt 0:00:14]} 18. Rhb1 {[%emt 0:07:55]} Bd8 {[%emt 0:00:25]} 19. Rb8 {[%emt 0:07:29]} Rxb8 {[%emt 0:00:14]} 20. Rxb8 {[%emt 0:00:40]} O-O {[%emt 0:00:08] [#] White must now prevent ...Bh4+.} 21. Ke3 $146 {[%emt 0:04:21]} (21. Rb7 $1 $14 Bc8 22. Ra7) ({Predecessor:} 21. Rb7 Bc6 22. Ra7 Ba5 23. Rxa6 Bxc3 24. Bxc3 Rc8 25. Ke3 Bb5 26. Rb6 Ba4 27. Kd3 {½-½ (90) Svane,R (2615)-Gavrilescu,D (2477) Reykjavik 2021}) 21... Ba5 {[%emt 0:00:58] Weighted Error Value: White=0.08 (flawless) /Black=0.05 (flawless)} *

[Event "Fall GM-A Norm Invitational 2022"]
[Site "Charlotte"]
[Date "2022.11.19"]
[Round "3"]
[White "Fus, Jakub"]
[Black "Mulyar, Michael"]
[Result "1/2-1/2"]
[ECO "C78"]
[WhiteElo "2427"]
[BlackElo "2355"]
[Annotator "TA"]
[PlyCount "83"]
[EventDate "2022.11.18"]
[EventType "tourn"]
[EventCountry "USA"]
[SourceTitle "playchess.com"]
[Source "ChessBase"]
[SourceQuality "1"]
[TimeControl "5400+30"]

{[%evp 16,83,27,8,25,6,6,8,16,16,9,10,14,22,18,10,29,24,34,20,14,12,13,2,32,27,37,31,43,52,52,0,63,69,95,91,109,100,206,-235,152,132,148,91,179,157,163,153,156,94,92,0,12,0,0,0,0,0,0,0,0,0,0,0,0,0,0,-1987,12837,105]} 1. e4 {[%emt 0:00:06]} e5 {[%emt 0:00:13]} 2. Nf3 {[%emt 0:00:11]} Nc6 {[%emt 0:00:12]} 3. Bb5 {[%emt 0:00:20]} a6 {[%emt 0:00:25]} 4. Ba4 {[%emt 0:00:12]} Nf6 {[%emt 0:00:07]} 5. O-O {[%emt 0:00:28]} b5 {[%emt 0:00:28]} 6. Bb3 {[%emt 0:00:09]} Bc5 {[%emt 0:00:05]} 7. c3 {[%emt 0:01:45]} d6 {[%emt 0:00:23]} 8. d4 {[%emt 0:00:14]} Bb6 {[%emt 0:00:06]} 9. Be3 $1 {[%emt 0:01:10][%mdl 4] outshines the older 9.a4.} (9. a4 $5 {[%cal Ra4b5]}) 9... Bg4 {[%emt 0:02:28] C78: Ruy Lopez: Archangelsk and Möller Defences.} 10. dxe5 {[%emt 0:22:09]} Bxf3 {[%emt 0:00:16]} 11. Qxf3 {[%emt 0:01:41]} Nxe5 {[%emt 0:00:21] The position is equal.} 12. Qe2 {[%emt 0:01:23] Strongly threatening Bxb6.} Bxe3 {[%emt 0:02:14]} (12... Nxe4 $2 13. Bxb6 cxb6 14. Qxe4 $18) 13. Qxe3 {[%emt 0:00:23]} O-O {[%emt 0:00:15]} 14. Nd2 {[%emt 0:01:46]} Re8 {[%emt 0:03:50] [#]} 15. f4 $146 {[%emt 0:15:52]} ({Predecessor:} 15. Rae1 Ned7 16. Qh3 Nc5 17. Bc2 Qd7 18. Qg3 Qg4 19. Qxg4 Nxg4 20. f4 Re7 21. Nf3 {0-1 (53) Zelcic,R (2518)-Thorfinnsson,B (2381) Portoroz 2019}) 15... Ng6 {[%emt 0:11:53]} 16. Qf3 {[%emt 0:01:54]} c5 {[%emt 0:09:37]} 17. Rae1 {[%emt 0:01:27]} Ra7 {[%emt 0:04:57]} 18. g3 {[%emt 0:04:06]} Rae7 {[%emt 0:02:14]} 19. Re2 {[%emt 0:00:31]} Qd7 {[%emt 0:05:49]} (19... c4 $5 {[%cal Rc4b3]} 20. Bc2 h5 $11) 20. Kg2 {[%emt 0:01:18]} h6 {[%emt 0:08:38]} 21. Rfe1 {[%emt 0:02:51]} Qc7 {[%emt 0:07:55]} 22. Bc2 {[%emt 0:01:31]} c4 {[%emt 0:03:37]} 23. a3 {[%emt 0:09:27]} (23. Nf1 $14) 23... Nd7 {[%emt 0:02:28]} (23... Nf8 $11) 24. Nf1 $14 {[%emt 0:02:21]} Nf6 {[%emt 0:02:04]} 25. Ne3 {[%emt 0:01:35]} Qb7 {[%emt 0:08:04]} 26. Nf5 {[%emt 0:00:50][%csl LRd6,LRe7][%cal Of5d6]} Re6 {[%emt 0:00:05]} (26... Rd7 $16 {was necessary.}) 27. g4 $4 {[%emt 0:04:57][%mdl 8192] [#]} (27. Rd2 $18) 27... Nd7 $2 {[%emt 0:05:38] Pair of Knights!} (27... Nd5 $1 $19 {[%cal Rd5f4][%mdl 512]} 28. Kg1 (28. Kh1 Ndxf4) 28... Ndxf4) 28. h4 $1 $16 {[%emt 0:02:04]} Nc5 {[%emt 0:02:06][%cal Oc5d3]} 29. Kg3 {[%emt 0:01:56]} (29. h5 $142) 29... Nf8 {[%emt 0:05:02]} (29... Qc7 $16 {was worth a try.}) 30. g5 {[%emt 0:00:45] Hoping for gxh6.} h5 {[%emt 0:03:40]} 31. Qxh5 {[%emt 0:12:27] Black must now prevent Qf3.} Nd3 {[%emt 0:00:14] [#]} 32. Bxd3 {[%emt 0:00:07]} (32. Qf3 $142 $1) 32... cxd3 {[%emt 0:00:06] [#]} 33. Rd2 {[%emt 0:00:21] White is more active.} ({Better is} 33. Re3 $1 $16 {[%cal Re3d3]}) 33... Rxe4 $11 {[%emt 0:05:17]} 34. Nxd6 $40 {[%emt 0:06:55][%mdl 128] White attacks.} ({Much weaker is} 34. Rxe4 Qxe4 $17) 34... Re3+ {[%emt 0:00:09]} 35. Rxe3 {[%emt 0:00:18]} Rxe3+ {[%emt 0:00:04]} 36. Kf2 {[%emt 0:00:05] Dancing on a razor blade.} Qb6 {[%emt 0:00:07]} 37. Qxf7+ {[%emt 0:00:05]} (37. Nxf7 Re2+ 38. Kf3 Qf2+ 39. Kg4 Qg2+ 40. Kf5 Qh3+ 41. Qg4 g6+ 42. Kf6 Re6+) 37... Kh7 {[%emt 0:00:03]} 38. Qh5+ {[%emt 0:00:42]} (38. Qxf8 Re2+ 39. Kf3 Qf2+ 40. Kg4 Qg2+ 41. Kh5 g6#) 38... Kg8 {[%emt 0:00:06]} 39. Qf7+ {[%emt 0:00:03]} Kh7 {[%emt 0:00:02]} 40. Qh5+ (40. Qxf8 {leads to mate.} Re2+ 41. Kf3 Qf2+ 42. Kg4 Qg2+ 43. Kh5 g6#) 40... Kg8 {( -> ...Re2+)} 41. Kg2 $2 {[%mdl 8192]} Re6 $4 {[%mdl 8192]} (41... Qxd6 $19 42. Qg4 Ne6) 42. Nf5 $2 {What a bad dream for Black.   Weighted Error Value: White=0.51/Black=0.31} (42. Qf7+ $18 {is the precise move to win.} Kh7 43. Nf5 (43. Rxd3 Rxd6 44. Rxd6 Qxd6 $11) 43... Re2+ 44. Rxe2) 1/2-1/2